fUST/lending_fUST_20250102
["ID","MTS","AMOUNT","RATE_DAILY","PERIOD"]
[347431846,1735799438627,-299.07731285,0.00019078,2]
[347431847,1735799438637,-346.81439882,0.00019078,2]
[347431848,1735799438646,-527.73388858,0.00019078,2]
[347431850,1735799438654,-154.33,0.00019078,2]
[347431852,1735799438663,-2345.42133465,0.00019078,2]
[347431854,1735799438672,-499.49440839,0.0001913,2]
[347431856,1735799438681,-500.45756679,0.00019173,2]
[347431858,1735799438690,-158.54630435,0.00019173,2]
[347431860,1735799438698,-500.0,0.00019176,2]
[347431862,1735799438707,-500.0,0.00019176,2]
[347431864,1735799438716,-500.0,0.00019176,2]
[347431865,1735799438725,-206.05045402,0.00019176,2]
[347431866,1735799438734,-162.03640781,0.00019176,2]
[347431867,1735799438743,-500.0,0.00019176,2]
[347431868,1735799438752,-423.22332398,0.00019176,2]
[347431869,1735799438760,-502.77137632,0.00019176,2]
[347431870,1735799438769,-500.0,0.00019176,2]
[347431871,1735799438778,-500.0,0.00019176,2]
[347431872,1735799438787,-1004.72032901,0.00019177,2]
[347431873,1735799438796,-182.96750193,0.00019177,2]
[347431874,1735799438805,-217.842,0.00019177,2]
[347431875,1735799438814,-9695.54742154,0.00019177,2]
[347431876,1735799438824,-30651.19768501,0.00019177,2]
[347431877,1735799438836,-69945.53072557,0.00019177,2]
[347431878,1735799438845,-500.0,0.00019178,2]
[347431879,1735799438855,-225.98022381,0.00019178,2]
[347431880,1735799438864,-500.0,0.00019178,2]
[347431881,1735799438873,-494.085977,0.00019178,2]
[347431882,1735799438882,-528.38758613,0.00019178,2]
[347431883,1735799438892,-500.0,0.00019178,2]
[347431884,1735799438902,-500.0,0.00019178,2]
[347431885,1735799438910,-500.0,0.00019178,2]
[347431886,1735799438919,-500.0,0.00019178,2]
[347431887,1735799438928,-151.0,0.00019178,2]
[347431888,1735799438937,-506.6314747,0.00019178,2]
[347431889,1735799438946,-500.0,0.00019178,2]
[347431890,1735799438955,-500.0,0.00019178,2]
[347431891,1735799438964,-500.0,0.00019178,2]
[347431892,1735799438972,-500.0,0.00019178,2]
[347431893,1735799438981,-500.0,0.00019178,2]
[347431894,1735799438990,-500.0,0.00019178,2]
[347431895,1735799438999,-500.0,0.00019178,2]
[347431896,1735799439008,-151.0,0.00019178,2]
[347431897,1735799439017,-151.0,0.00019178,2]
[347431898,1735799439025,-151.0,0.00019178,2]
[347431899,1735799439034,-151.0,0.00019178,2]
[347431900,1735799439043,-151.0,0.00019178,2]
[347431901,1735799439053,-151.0,0.00019178,2]
[347431902,1735799439062,-500.0,0.00019178,2]
[347431903,1735799439070,-151.0,0.00019178,2]
[347431904,1735799439080,-151.0,0.00019178,2]
[347431905,1735799439089,-151.0,0.00019178,2]
[347431906,1735799439098,-507.3950219,0.00019178,2]
[347431907,1735799439108,-500.0,0.00019178,2]
[347431908,1735799439117,-429.9906071,0.00019178,2]
[347431909,1735799439126,-500.0,0.00019178,2]
[347431910,1735799439136,-500.0,0.00019178,2]
[347431911,1735799439145,-502.45068099,0.00019178,2]
[347431912,1735799439154,-500.96870356,0.00019178,2]
[347431913,1735799439163,-151.0,0.00019178,2]
[347431914,1735799439171,-500.79384304,0.00019178,2]
[347431915,1735799439181,-588.63800989,0.00019178,2]
[347431916,1735799439190,-500.0,0.00019178,2]
[347431917,1735799439200,-500.0,0.00019178,2]
[347431918,1735799439209,-500.0,0.00019178,2]
[347431919,1735799439218,-500.0,0.00019178,2]
[347431920,1735799439227,-500.0,0.00019178,2]
[347431921,1735799439236,-500.0,0.00019178,2]
[347431922,1735799439245,-500.0,0.00019178,2]
[347431923,1735799439256,-544.18718719,0.00019178,2]
[347431924,1735799439267,-500.0,0.00019178,2]
[347431925,1735799439276,-420.2662736,0.00019178,2]
[347431926,1735799439285,-500.0,0.00019178,2]
[347431927,1735799439294,-502.53047204,0.00019178,2]
[347431928,1735799439303,-501.99707744,0.00019178,2]
[347431929,1735799439312,-466.20063156,0.00019178,2]
[347431930,1735799439321,-500.0,0.00019178,2]
[347431931,1735799439331,-500.56822267,0.00019178,2]
[347431932,1735799439340,-172.10824541,0.00019178,2]
[347431933,1735799439351,-500.0,0.00019178,2]
[347431934,1735799439360,-500.0,0.00019178,2]
[347431935,1735799439369,-500.0,0.00019178,2]
[347431936,1735799439378,-500.0,0.00019178,2]
[347431937,1735799439388,-503.42427045,0.00019178,2]
[347431938,1735799439398,-151.0,0.00019178,2]
[347431939,1735799439407,-151.0,0.00019178,2]
[347431940,1735799439416,-500.0,0.00019178,2]
[347431941,1735799439431,-500.0,0.00019178,2]
[347431942,1735799439440,-500.0,0.00019178,2]
[347431943,1735799439449,-392.00276002,0.00019178,2]
[347431944,1735799439459,-151.0,0.00019178,2]
[347431945,1735799439468,-500.0,0.00019178,2]
[347431946,1735799439477,-500.0,0.00019178,2]
[347431947,1735799439486,-206.26323314,0.00019178,2]
[347431948,1735799439495,-500.0,0.00019178,2]
[347431949,1735799439504,-500.0,0.00019178,2]
[347431950,1735799439513,-500.0,0.00019178,2]
[347431951,1735799439523,-500.0,0.00019178,2]
[347431952,1735799439532,-500.0,0.00019178,2]
[347431953,1735799439541,-500.0,0.00019178,2]
[347431954,1735799439550,-500.0,0.00019178,2]
[347431955,1735799439558,-500.0,0.00019178,2]
[347431956,1735799439567,-500.0,0.00019178,2]
[347431957,1735799439576,-500.0,0.00019178,2]
[347431958,1735799439585,-500.0,0.00019178,2]
[347431959,1735799439594,-500.0,0.00019178,2]
[347431960,1735799439603,-500.0,0.00019178,2]
[347431961,1735799439612,-500.0,0.00019178,2]
[347431962,1735799439621,-273.16240629,0.00019178,2]
[347431963,1735799439630,-500.0,0.00019178,2]
[347431964,1735799439640,-500.0,0.00019178,2]
[347431965,1735799439649,-500.0,0.00019178,2]
[347431966,1735799439658,-500.0,0.00019178,2]
[347431967,1735799439667,-500.0,0.00019178,2]
[347431968,1735799439676,-500.0,0.00019178,2]
[347431969,1735799439685,-500.0,0.00019178,2]
[347431970,1735799439695,-500.0,0.00019178,2]
[347431971,1735799439704,-500.0,0.00019178,2]
[347431972,1735799439714,-500.0,0.00019178,2]
[347431973,1735799439723,-500.0,0.00019178,2]
[347431974,1735799439732,-500.0,0.00019178,2]
[347431975,1735799439741,-500.0,0.00019178,2]
[347431976,1735799439752,-224.6683306,0.00019178,2]
[347431977,1735799439761,-2708.615347,0.00019178,2]
[347431978,1735799439770,-2708.615347,0.00019178,2]
[347431979,1735799439779,-2708.615347,0.00019178,2]
[347431980,1735799439788,-500.0,0.00019178,2]
[347431981,1735799439798,-2708.615347,0.00019178,2]
[347431982,1735799439807,-2708.615347,0.00019178,2]
[347431983,1735799439816,-2708.615347,0.00019178,2]
[347431984,1735799439825,-2708.615347,0.00019178,2]
[347431985,1735799439835,-2708.615347,0.00019178,2]
[347431986,1735799439844,-500.0,0.00019178,2]
[347431987,1735799439853,-488.77986999,0.00019178,2]
[347431988,1735799439863,-504.48818486,0.00019178,2]
[347431989,1735799439873,-500.0,0.00019178,2]
[347431990,1735799439882,-500.0,0.00019178,2]
[347431991,1735799439893,-504.20592496,0.00019178,2]
[347431992,1735799439902,-500.0,0.00019178,2]
[347431993,1735799439911,-510.65179228,0.00019178,2]
[347431994,1735799439920,-500.0,0.00019178,2]
[347431995,1735799439929,-510.7402315,0.00019178,2]
[347431996,1735799439938,-500.0,0.00019178,2]
[347431997,1735799439947,-500.0,0.00019178,2]
[347431998,1735799439957,-500.0,0.00019178,2]
[347431999,1735799439966,-500.0,0.00019178,2]
[347432000,1735799439975,-500.0,0.00019178,2]
[347432001,1735799439984,-500.0,0.00019178,2]
[347432002,1735799439994,-500.0,0.00019178,2]
[347432003,1735799440003,-501.84019742,0.00019178,2]
[347432004,1735799440012,-500.0,0.00019178,2]
[347432005,1735799440021,-500.0,0.00019178,2]
[347432006,1735799440030,-500.0,0.00019178,2]
[347432007,1735799440039,-160.57621716,0.00019178,2]
[347432008,1735799440048,-500.0,0.00019178,2]
[347432009,1735799440059,-151.0,0.00019178,2]
[347432010,1735799440068,-240.02051,0.00019178,2]
[347432011,1735799440077,-500.0,0.00019178,2]
[347432012,1735799440087,-500.0,0.00019178,2]
[347432013,1735799440096,-151.776266,0.00019178,2]
[347432014,1735799440106,-500.0,0.00019178,2]
[347432015,1735799440115,-500.0,0.00019178,2]
[347432017,1735799440124,-500.0,0.00019178,2]
[347432019,1735799440133,-500.0,0.00019178,2]
[347432021,1735799440143,-500.0,0.00019178,2]
[347432024,1735799440152,-503.97305001,0.00019178,2]
[347432026,1735799440161,-300.96884149,0.00019178,2]
[347432028,1735799440171,-500.0,0.00019178,2]
[347432029,1735799440180,-500.0,0.00019178,2]
[347432030,1735799440189,-500.0,0.00019178,2]
[347432031,1735799440198,-500.0,0.00019178,2]
[347432032,1735799440207,-598.53094804,0.00019178,2]
[347432033,1735799440216,-579.93,0.00019178,2]
[347432034,1735799440225,-500.0,0.00019178,2]
[347432035,1735799440234,-502.53447067,0.00019178,2]
[347432037,1735799440243,-500.0,0.00019178,2]
[347432039,1735799440254,-500.0,0.00019178,2]
[347432041,1735799440270,-500.0,0.00019178,2]
[347432043,1735799440279,-528.44917059,0.00019178,2]
[347432045,1735799440288,-500.0,0.00019178,2]
[347432047,1735799440298,-500.0,0.00019178,2]
[347432049,1735799440307,-500.0,0.00019178,2]
[347432051,1735799440316,-500.0,0.00019178,2]
[347432053,1735799440326,-500.0,0.00019178,2]
[347432055,1735799440335,-500.0,0.00019178,2]
[347432057,1735799440344,-500.0,0.00019178,2]
[347432058,1735799440354,-500.0,0.00019178,2]
[347432059,1735799440363,-500.0,0.00019178,2]
[347432060,1735799440373,-500.0,0.00019178,2]
[347432061,1735799440382,-500.0,0.00019178,2]
[347432062,1735799440393,-500.0,0.00019178,2]
[347432063,1735799440403,-500.0,0.00019178,2]
[347432064,1735799440412,-500.0,0.00019178,2]
[347432065,1735799440423,-500.0,0.00019178,2]
[347432066,1735799440432,-500.0,0.00019178,2]
[347432067,1735799440444,-500.0,0.00019178,2]
[347432068,1735799440453,-500.0,0.00019178,2]
[347432069,1735799440462,-500.0,0.00019178,2]
[347432070,1735799440471,-500.0,0.00019178,2]
[347432071,1735799440479,-500.0,0.00019178,2]
[347432072,1735799440489,-500.0,0.00019178,2]
[347432073,1735799440498,-500.0,0.00019178,2]
[347432074,1735799440507,-182.64963597,0.00019178,2]
[347432075,1735799440516,-500.0,0.00019178,2]
[347432076,1735799440525,-501.54274237,0.00019178,2]
[347432077,1735799440534,-500.0,0.00019178,2]
[347432078,1735799440543,-151.316203,0.00019178,2]
[347432079,1735799440552,-500.0,0.00019178,2]
[347432080,1735799440561,-500.0,0.00019178,2]
[347432081,1735799440570,-500.0,0.00019178,2]
[347432082,1735799440580,-500.0,0.00019178,2]
[347432083,1735799440589,-500.0,0.00019178,2]
[347432084,1735799440598,-500.0,0.00019178,2]
[347432085,1735799440607,-500.0,0.00019178,2]
[347432086,1735799440616,-500.93860084,0.00019178,2]
[347432087,1735799440625,-500.0,0.00019178,2]
[347432088,1735799440635,-500.0,0.00019178,2]
[347432089,1735799440644,-500.0,0.00019178,2]
[347432090,1735799440654,-500.0,0.00019178,2]
[347432091,1735799440663,-500.0,0.00019178,2]
[347432092,1735799440671,-536.07085811,0.00019178,2]
[347432093,1735799440681,-524.88,0.00019178,2]
[347432094,1735799440690,-500.0,0.00019178,2]
[347432095,1735799440699,-500.0,0.00019178,2]
[347432096,1735799440708,-500.0,0.00019178,2]
[347432097,1735799440720,-507.28905441,0.00019178,2]
[347432098,1735799440731,-168.0,0.00019178,2]
[347432099,1735799440740,-502.78210461,0.00019178,2]
[347432100,1735799440750,-500.0,0.00019178,2]
[347432101,1735799440759,-500.0,0.00019178,2]
[347432102,1735799440768,-500.0,0.00019178,2]
[347432103,1735799440777,-500.0,0.00019178,2]
[347432104,1735799440786,-500.0,0.00019178,2]
[347432105,1735799440795,-501.79513086,0.00019178,2]
[347432106,1735799440804,-500.0,0.00019178,2]
[347432107,1735799440814,-503.39948042,0.00019178,2]
[347432108,1735799440823,-500.0,0.00019178,2]
[347432109,1735799440832,-500.0,0.00019178,2]
[347432110,1735799440841,-500.0,0.00019178,2]
[347432111,1735799440850,-500.0,0.00019178,2]
[347432112,1735799440859,-500.0,0.00019178,2]
[347432113,1735799440868,-500.0,0.00019178,2]
[347432114,1735799440877,-500.0,0.00019178,2]
[347432115,1735799440888,-211.12578138,0.00019178,2]
[347432116,1735799440898,-508.80629684,0.00019178,2]
[347432117,1735799440907,-500.0,0.00019178,2]
[347432118,1735799440916,-500.0,0.00019178,2]
[347432119,1735799440924,-500.0,0.00019178,2]
[347432120,1735799440933,-500.0,0.00019178,2]
[347432121,1735799440942,-151.0,0.00019178,2]
[347432122,1735799440951,-151.0,0.00019178,2]
[347432123,1735799440960,-151.0,0.00019178,2]
[347432124,1735799440969,-396.78369596,0.00019178,2]
[347432125,1735799441244,-103.21630404,0.00019178,2]
[347432126,1735799441257,-500.0,0.00019178,2]
[347432127,1735799441266,-505.00623666,0.00019178,2]
[347432128,1735799441275,-582.77247393,0.00019178,2]
[347432129,1735799441285,-502.33266393,0.00019178,2]
[347432130,1735799441295,-500.0,0.00019178,2]
[347432131,1735799441304,-500.0,0.00019178,2]
[347432132,1735799441314,-79.82469606,0.00019178,2]
[347432167,1735799446682,-484.0,0.000186,2]
[347432168,1735799446692,-151.0,0.00019177,2]
[347432169,1735799446701,-71.03642474,0.00019178,2]
[347432170,1735799446710,-136.79418463,0.00019178,2]
[347432176,1735799556054,1000.0,0.00025,120]
[347432177,1735799956491,172.368587,0.00013973,2]
[347432193,1735800586264,212.4,0.00024,120]
[347432206,1735800631945,-300.0,0.0001677,2]
[347432207,1735800631954,-300.0,0.00016939,2]
[347432208,1735800631965,-300.0,0.0001711,2]
[347432209,1735800631974,-10566.99805,0.00017111,2]
[347432226,1735800637691,-2085.7195245,0.00017111,2]
[347432227,1735800637805,-35065.44330071,0.00017111,2]
[347432228,1735800637815,-629.70334085,0.00017111,2]
[347432229,1735800637824,-196.6874166,0.0001764,2]
[347432230,1735800637834,-208.81880726,0.00017817,2]
[347432231,1735800637843,-629.70334081,0.00017979,2]
[347432232,1735800637864,-17804.96281234,0.00018099,2]
[347432244,1735800639905,-1192.44528738,0.0001694,14]
[347432245,1735800639915,-4957.69974626,0.00018099,2]
[347432246,1735800639925,-568.4290901,0.00018118,2]
[347432247,1735800639935,-181.10396268,0.00018118,2]
[347432248,1735800639945,-643.684,0.0001822,2]
[347432249,1735800639954,-392.79574269,0.000186,2]
[347432250,1735800639966,-107.20425731,0.000186,2]
[347432251,1735800639976,-600.0,0.000186,2]
[347432252,1735800639986,-420.0,0.00018686,2]
[347432253,1735800639996,-629.70334081,0.00018847,2]
[347432254,1735800640006,-1314.27415031,0.000189,2]
[347432255,1735800640015,-400.820327,0.00018986,2]
[347432256,1735800640025,-1004.72032901,0.00019077,2]
[347432257,1735800640035,-362.79722049,0.00019077,2]
[347432258,1735800640044,-217.842,0.00019094,2]
[347432259,1735800640053,-166.15190933,0.000191,4]
[347432260,1735800640063,-500.0,0.00019133,2]
[347432261,1735800640072,-500.0,0.00019133,2]
[347432262,1735800640082,-502.77137632,0.00019133,2]
[347432263,1735800640091,-14.53397129,0.00019133,2]
[347432264,1735800640103,-485.46602871,0.00019133,2]
[347432265,1735800640113,-500.0,0.00019133,2]
[347432266,1735800640122,-206.05045402,0.00019133,2]
[347432267,1735800640132,-500.0,0.00019133,2]
[347432268,1735800640141,-500.0,0.00019133,2]
[347432269,1735800640150,-423.22332398,0.00019133,2]
[347432270,1735800640160,-162.03640781,0.00019133,2]
[347432271,1735800640169,-13122.95343103,0.00019134,2]
[347432289,1735800642911,-36.36854662,0.00019134,2]
[347432290,1735800642923,-2389.75,0.00019134,2]
[347432291,1735800642934,-27209.06773763,0.00019134,2]
[347432292,1735800643018,-1730.53268698,0.00019134,2]
[347432293,1735800643027,-500.45756679,0.00019173,2]
[347432294,1735800643038,-158.54630435,0.00019173,2]
[347432295,1735800643048,-505.29883538,0.00019173,2]
[347432296,1735800643058,-151.0,0.00019177,2]
[347432297,1735800643067,-9695.54742154,0.00019178,2]
[347432298,1735800643077,-30970.8775381,0.00019178,2]
[347432309,1735800876196,163.750157,0.00013973,2]
[347432332,1735801832222,-300.0,0.00017714,2]
[347432333,1735801832231,-19847.1011188,0.00017715,2]
[347432334,1735801832240,-499.49440839,0.00017738,2]
[347432335,1735801832249,-499.49440839,0.00018097,2]
[347432336,1735801832258,-564.72,0.00018152,2]
[347432337,1735801832268,-616.9,0.0001822,2]
[347432338,1735801832278,-876.18276687,0.000189,2]
[347432339,1735801832287,-200.4101635,0.00018986,2]
[347432340,1735801832297,-393.56458805,0.00019077,2]
[347432341,1735801832306,-290.2377764,0.00019078,2]
[347432342,1735801832315,-346.81439882,0.00019078,2]
[347432343,1735801832325,-13077.04260497,0.00019152,2]
[347432344,1735801832337,-3212.81477708,0.00019152,2]
[347432346,1735801832346,-246.90250578,0.00019177,2]
[347432348,1735801832355,-192.034,0.00019177,2]
[347432349,1735801832364,-504.25396925,0.00019177,2]
[347432351,1735801832373,-4847.77371077,0.00019178,2]
[347432352,1735801832383,-548.63606475,0.00019178,2]
[347432370,1735801838120,-3810.50358255,0.00019178,2]
[347432371,1735801838132,-776.7065474,0.00019178,2]
[347432413,1735802160226,163.750157,0.00013973,2]
[347432601,1735803038449,-204.568624,0.00017288,2]
[347432602,1735803038459,-204.568624,0.00017463,2]
[347432603,1735803038470,-7.192752,0.00017817,2]
[347432748,1735803046509,-201.62605526,0.00017817,2]
[347432749,1735803046519,-300.0,0.00017976,2]
[347432750,1735803046528,-1425.77394475,0.00017977,2]
[347432751,1735803101548,2588.38612378,0.00025,120]
[347432754,1735803253651,1717.38707877,0.00017,6]
[347432755,1735803265688,163.750157,0.00013973,2]
[347432787,1735804116196,163.750157,0.00013973,2]
[347432811,1735804232539,-2923.08193211,0.0001667,2]
[347432812,1735804232549,-300.0,0.00017036,2]
[347432813,1735804232558,-2423.88685539,0.00017037,2]
[347432814,1735804232567,-40142.14726411,0.00017037,2]
[347432821,1735804232620,-7428.45391729,0.00017037,2]
[347432823,1735804232630,-24900.0,0.00017037,2]
[347432825,1735804232639,-647.0444198,0.00017057,2]
[347432827,1735804232648,-899.0,0.00017976,7]
[347432829,1735804232657,-899.0,0.00017976,7]
[347432830,1735804232666,-899.0,0.00017976,7]
[347432833,1735804232676,-899.0,0.00017976,7]
[347432835,1735804232685,-899.0,0.00017976,7]
[347432837,1735804232694,-899.0,0.00017976,7]
[347432839,1735804232703,-899.0,0.00017976,7]
[347432841,1735804232712,-899.0,0.00017976,7]
[347432843,1735804232721,-899.0,0.00017976,7]
[347432846,1735804232731,-899.0,0.00017976,7]
[347432849,1735804232740,-899.0,0.00017976,7]
[347432852,1735804232749,-899.0,0.00017976,7]
[347432854,1735804232758,-899.0,0.00017976,7]
[347432856,1735804232767,-899.0,0.00017976,7]
[347432874,1735804232930,-899.0,0.00017976,7]
[347432875,1735804232940,-899.0,0.00017976,7]
[347432876,1735804232949,-899.0,0.00017976,7]
[347432877,1735804232958,-899.0,0.00017976,7]
[347432878,1735804232968,-899.0,0.00017976,7]
[347432879,1735804232977,-899.0,0.00017976,7]
[347432880,1735804232986,-899.0,0.00017976,7]
[347432881,1735804232996,-315.41571571,0.00017976,7]
[347432882,1735804233006,-151.0,0.00017977,2]
[347432883,1735804233015,-153.697083,0.00017977,2]
[347432884,1735804233024,-156.544207,0.00017977,2]
[347432885,1735804233033,-156.544207,0.00017977,2]
[347432886,1735804233043,-651.613521,0.00017977,2]
[347432887,1735804233052,-651.613521,0.00017977,2]
[347432888,1735804233061,-453.775118,0.00017977,2]
[347432889,1735804233070,-453.775118,0.00017977,2]
[347432890,1735804233079,-660.062,0.0001822,2]
[347432891,1735804233088,-420.0,0.00018607,2]
[347432892,1735804233097,-584.12184458,0.000189,2]
[347432893,1735804233106,-500.0,0.00018985,2]
[347432894,1735804233115,-501.0254087,0.00018986,2]
[347432895,1735804233124,-302.54622906,0.00019,2]
[347432896,1735804233133,-151.0,0.00019078,2]
[347432897,1735804233143,-151.0,0.00019078,2]
[347432898,1735804233152,-232.19022112,0.00019078,2]
[347432899,1735804233161,-195.41717,0.00019078,2]
[347432900,1735804233170,-223.00574,0.00019078,2]
[347432901,1735804233179,-195.41717,0.00019078,2]
[347432902,1735804233188,-223.00574,0.00019078,2]
[347432903,1735804233197,-299.455776,0.00019078,2]
[347432904,1735804233206,-299.455776,0.00019078,2]
[347432905,1735804233215,-2345.42133465,0.00019078,2]
[347432906,1735804233225,-150.0,0.000191,4]
[347432907,1735804233234,-192.03584133,0.00019101,2]
[347432908,1735804233244,-232.1902211,0.00019147,2]
[347432909,1735804233255,-190.02328871,0.00019166,2]
[347432910,1735804233264,-154.33,0.00019177,2]
[347432911,1735804233273,-274.45125289,0.00019177,2]
[347432912,1735804233283,-500.0,0.00019177,2]
[347432913,1735804233292,-535.97146283,0.00019177,4]
[347432914,1735804233302,-151.667471,0.00019178,2]
[347432915,1735804233311,-235.85898653,0.00019178,2]
[347432916,1735804233320,-151.0,0.00019178,2]
[347432917,1735804233330,-1625.169208,0.00019178,2]
[347432918,1735804233339,-1625.169208,0.00019178,2]
[347432919,1735804233348,-1625.169208,0.00019178,2]
[347432920,1735804233357,-1625.169208,0.00019178,2]
[347432921,1735804233366,-1625.169208,0.00019178,2]
[347432922,1735804233376,-1625.169208,0.00019178,2]
[347432923,1735804233385,-1625.169208,0.00019178,2]
[347432924,1735804233395,-1625.169208,0.00019178,2]
[347432925,1735804233404,-1625.169208,0.00019178,2]
[347432926,1735804233415,-1625.169208,0.00019178,2]
[347432927,1735804233424,-1625.169208,0.00019178,2]
[347432928,1735804233433,-1625.169208,0.00019178,2]
[347432929,1735804233443,-1625.169208,0.00019178,2]
[347432930,1735804233452,-1625.169208,0.00019178,2]
[347432931,1735804233461,-244.29148324,0.00019178,2]
[347432932,1735804233470,-500.0,0.00019178,2]
[347432933,1735804233479,-500.0,0.00019178,2]
[347432934,1735804233489,-500.0,0.00019178,2]
[347432935,1735804233498,-500.61478017,0.00019178,2]
[347432936,1735804233508,-491.31530678,0.00019178,2]
[347432937,1735804233517,-151.639759,0.00019178,2]
[347432938,1735804233526,-1192.516674,0.00019178,2]
[347432939,1735804233536,-1192.516674,0.00019178,2]
[347432940,1735804233546,-1192.516674,0.00019178,2]
[347432941,1735804233556,-1192.516674,0.00019178,2]
[347432942,1735804233566,-1192.516674,0.00019178,2]
[347432943,1735804233576,-1192.516674,0.00019178,2]
[347432944,1735804233585,-1192.516674,0.00019178,2]
[347432945,1735804233594,-1192.516674,0.00019178,2]
[347432946,1735804233604,-1192.516674,0.00019178,2]
[347432947,1735804233613,-1192.516674,0.00019178,2]
[347432948,1735804233624,-1192.516674,0.00019178,2]
[347432949,1735804233633,-1192.516674,0.00019178,2]
[347432950,1735804233643,-1192.516674,0.00019178,2]
[347432951,1735804233652,-1192.516674,0.00019178,2]
[347432952,1735804233663,-1192.516674,0.00019178,2]
[347432953,1735804233673,-1192.516674,0.00019178,2]
[347432954,1735804233682,-1192.516674,0.00019178,2]
[347432955,1735804233692,-1192.516674,0.00019178,2]
[347432956,1735804233701,-1192.516674,0.00019178,2]
[347432957,1735804233711,-1192.516675,0.00019178,2]
[347432958,1735804233721,-168.855899,0.00019178,2]
[347432959,1735804233731,-168.855899,0.00019178,2]
[347432960,1735804233740,-168.855899,0.00019178,2]
[347432961,1735804233750,-168.855899,0.00019178,2]
[347432962,1735804233760,-168.855899,0.00019178,2]
[347432963,1735804233769,-168.855899,0.00019178,2]
[347432964,1735804233779,-168.855899,0.00019178,2]
[347432965,1735804233788,-168.855899,0.00019178,2]
[347432966,1735804233797,-168.855899,0.00019178,2]
[347432967,1735804233806,-168.855899,0.00019178,2]
[347432968,1735804233815,-168.855899,0.00019178,2]
[347432969,1735804233824,-168.855899,0.00019178,2]
[347432970,1735804233834,-168.855899,0.00019178,2]
[347432971,1735804233848,-168.855899,0.00019178,2]
[347432972,1735804233857,-168.855899,0.00019178,2]
[347432973,1735804233867,-168.855899,0.00019178,2]
[347432974,1735804233876,-168.855899,0.00019178,2]
[347432975,1735804233886,-168.855899,0.00019178,2]
[347432976,1735804233895,-168.855899,0.00019178,2]
[347432977,1735804233905,-168.855897,0.00019178,2]
[347432978,1735804233915,-757.371253,0.00019178,2]
[347432979,1735804233927,-544.42440504,0.00019178,2]
[347432980,1735804233937,-757.371253,0.00019178,2]
[347432981,1735804233947,-757.371253,0.00019178,2]
[347432982,1735804233956,-757.371253,0.00019178,2]
[347432983,1735804233966,-757.371253,0.00019178,2]
[347432984,1735804233975,-757.371253,0.00019178,2]
[347432985,1735804233985,-757.371253,0.00019178,2]
[347432986,1735804233999,-757.371253,0.00019178,2]
[347432987,1735804234009,-757.371253,0.00019178,2]
[347432988,1735804234019,-757.371253,0.00019178,2]
[347432989,1735804234029,-757.371253,0.00019178,2]
[347432990,1735804234039,-757.371253,0.00019178,2]
[347432991,1735804234049,-757.371253,0.00019178,2]
[347432992,1735804234059,-757.371253,0.00019178,2]
[347432993,1735804234069,-757.371253,0.00019178,2]
[347432994,1735804234078,-757.371253,0.00019178,2]
[347432995,1735804234088,-757.371253,0.00019178,2]
[347432996,1735804234098,-757.371253,0.00019178,2]
[347432997,1735804234108,-757.371253,0.00019178,2]
[347432998,1735804234118,-757.371246,0.00019178,2]
[347432999,1735804234127,-500.0,0.00019178,2]
[347433000,1735804234137,-500.0,0.00019178,2]
[347433001,1735804234147,-322.41676268,0.00019178,2]
[347433002,1735804234157,-500.0,0.00019178,2]
[347433003,1735804234167,-151.0,0.00019178,2]